bitfinex/quotes_SOLUSD_20220307
["timestamp","ask_amount","ask_price","bid_price","bid_amount"]
[1646687407456,1.66616966,81.247,81.204,12.405]
[1646687408160,1.66616966,81.247,81.204,0.25]
[1646687408357,1.66616966,81.247,81.201,0.25]
[1646687408557,1.16616966,81.247,81.187,6.25]
[1646687408758,38.88578094,81.251,81.188,12.156]
[1646687408958,0.25,81.25,81.189,0.25]
[1646687409158,6.156,81.249,81.19,32.9036]
[1646687409360,0.25,81.248,81.191,0.25]
[1646687410158,0.25,81.248,81.192,6.156]
[1646687410459,0.25,81.248,81.2,18.4721]
[1646687410763,0.25,81.25,81.201,6.405]
[1646687410959,0.25,81.25,81.202,30.10020871]
[1646687411160,0.25,81.25,81.203,6.405]
[1646687414364,0.25,81.25,81.203,0.25]
[1646687414664,0.25,81.25,81.21,18.4699]
[1646687414866,38.88578094,81.251,81.211,0.25]
[1646687416364,38.88578094,81.251,81.205,0.25]
[1646687416566,38.88578094,81.251,81.206,6.155]
[1646687416764,38.88578094,81.251,81.207,0.25]
[1646687416965,38.88578094,81.251,81.208,6.155]
[1646687417164,38.88578094,81.251,81.21,18.4701]
[1646687417369,38.88578094,81.251,81.211,6.405]
[1646687418871,38.88578094,81.251,81.21,18.4701]
[1646687420371,38.88578094,81.251,81.211,0.25]
[1646687421472,6.155,81.264,81.22,18.468]
[1646687421680,23.4973,81.265,81.221,0.25]
[1646687421877,112.2,81.301,81.221,13.15]
[1646687421878,3.27891556,81.298,81.221,13.15]
[1646687422080,30.27587741,81.3,81.222,23.0932]
[1646687422279,3.27891556,81.297,81.223,6.25]
[1646687422478,6.68987741,81.299,81.223,6.25]
[1646687422479,36.60767112,81.299,81.23,18.4658]
[1646687422676,6.68987741,81.298,81.231,6.25]
[1646687423177,0.25,81.297,81.231,12.402]
[1646687423378,6.152,81.296,81.231,12.402]
[1646687423578,6.68954277,81.295,81.231,12.402]
[1646687423779,6.152,81.294,81.231,12.402]
[1646687424076,6.152,81.296,81.231,12.402]
[1646687424277,6.68958837,81.295,81.231,12.402]
[1646687424481,6.152,81.294,81.24,18.4622]
[1646687424677,6.152,81.294,81.241,0.25]
[1646687424876,6.152,81.298,81.241,0.25]
[1646687425379,6.68945382,81.297,81.241,0.25]
[1646687425677,6.402,81.296,81.241,0.25]
[1646687425877,6.68945382,81.295,81.232,0.25]
[1646687426078,6.402,81.294,81.233,6.152]
[1646687426277,6.402,81.294,81.234,0.25]
[1646687426481,6.68945382,81.293,81.236,29.81747159]
[1646687426676,6.402,81.292,81.237,0.25]
[1646687427278,6.68913688,81.291,81.238,6.152]
[1646687427480,6.402,81.29,81.239,0.25]
[1646687427678,6.68913688,81.289,81.24,6.152]
[1646687427877,0.25,81.288,81.241,0.25]
[1646687428078,6.68913688,81.287,81.241,0.25]
[1646687428279,6.68913688,81.291,81.242,6.152]
[1646687428484,6.68913688,81.291,81.243,6.25]
[1646687428679,23.586,81.3,81.244,6.152]
[1646687428879,23.586,81.3,81.245,6.25]
[1646687429118,126.63,81.37,81.245,6.25]
[1646687429119,3.27891556,81.327,81.25,32.8888]
[1646687429306,100.0,81.341,81.252,123.8]
[1646687429506,100.0,81.341,81.261,123.8]
[1646687429706,3.27891556,81.373,81.271,123.8]
[1646687429906,3.27891556,81.373,81.273,123.8]
[1646687430105,6.68236258,81.376,81.275,124.0940874]
[1646687430309,6.68236258,81.372,81.3,18.4399]
[1646687430508,6.68236258,81.375,81.31,14.43]
[1646687430708,18.4415,81.42,81.31,14.43]
[1646687430709,28.52618552,81.386,81.311,34.14125326]
[1646687430909,3.27891556,81.394,81.312,24.0144]
[1646687431106,3.27891556,81.399,81.313,12.396]
[1646687431306,9.95957231,81.411,81.314,0.2940874]
[1646687431506,6.144,81.41,81.315,6.144]
[1646687431709,6.68065675,81.409,81.316,6.25]
[1646687431908,3.27891556,81.403,81.33,14.43]
[1646687432110,3.27891556,81.4,81.331,6.25]
[1646687432307,3.27891556,81.39,81.331,0.25]
[1646687432507,0.25,81.389,81.331,0.25]
[1646687432907,54.69942107,81.388,81.331,0.25]
[1646687433109,0.25,81.387,81.331,0.25]
[1646687433311,6.144,81.386,81.314,0.25]
[1646687433509,0.25,81.385,81.312,0.25]
[1646687433708,0.25,81.385,81.298,6.146]
[1646687433709,112.2,81.382,81.298,6.146]
[1646687433909,122.9,81.379,81.28,14.43]
[1646687434213,3.27891556,81.367,81.264,100.0]
[1646687434408,18.4677,81.35,81.264,100.0]
[1646687434609,112.94396797,81.349,81.259,18.6974]
[1646687434810,6.149,81.348,81.26,6.149]
[1646687435008,0.49396797,81.346,81.26,6.149]
[1646687435209,6.149,81.345,81.26,6.149]
[1646687435409,0.49396797,81.343,81.242,6.149]
[1646687435610,18.4628,81.33,81.242,6.149]
[1646687435809,0.74396797,81.329,81.242,6.149]
[1646687436010,6.151,81.328,81.242,6.149]
[1646687436310,122.9,81.324,81.242,0.149]
[1646687436511,122.9,81.313,81.21,14.43]
[1646687436715,18.4738,81.28,81.2,14.43]
[1646687436912,32.19450364,81.279,81.2,14.43]
[1646687437109,6.154,81.278,81.2,14.43]
[1646687437314,0.25,81.277,81.2,14.43]
[1646687437509,6.69618661,81.276,81.201,6.0]
[1646687437709,0.25,81.275,81.202,0.25]
[1646687437911,6.154,81.274,81.202,0.25]
[1646687438113,0.25,81.273,81.201,6.0]
[1646687438311,6.154,81.272,81.18,14.43]
[1646687438510,6.154,81.272,81.14,61.5894]
[1646687438511,0.79218661,81.271,81.16,14.43]
[1646687438711,122.9,81.269,81.16,14.43]
[1646687438910,6.406,81.268,81.161,0.34476955]
[1646687439111,6.156,81.268,81.161,0.34476955]
[1646687439315,0.25,81.267,81.161,0.34476955]
[1646687439512,6.7244827,81.266,81.161,0.34476955]
[1646687439811,0.5684827,81.264,81.161,0.34476955]
[1646687440014,6.156,81.263,81.171,17.3908767]
[1646687440215,0.25,81.262,81.18,14.43]
[1646687440413,6.156,81.261,81.182,122.9]
[1646687440613,6.156,81.261,81.186,122.9]
[1646687440813,6.155,81.306,81.202,73.9]
[1646687441018,6.152,81.312,81.211,122.9]
[1646687441215,6.152,81.323,81.221,122.9]
[1646687441415,6.152,81.347,81.231,122.9]
[1646687441613,6.152,81.347,81.24,14.43]
[1646687441817,6.152,81.347,81.241,29.45055506]
[1646687441818,31.12207083,81.346,81.241,29.45055506]
[1646687442115,6.15,81.345,81.241,29.79532461]
[1646687442514,6.15,81.345,81.242,0.34476955]
[1646687442914,28.75862021,81.344,81.242,0.34476955]
[1646687443113,6.15,81.343,81.242,0.34476955]
[1646687443314,18.4604,81.34,81.242,0.34476955]
[1646687443515,6.15,81.339,81.242,0.34476955]
[1646687443716,0.25,81.338,81.242,0.34476955]
[1646687444015,6.15,81.337,81.242,0.34476955]
[1646687444314,0.25,81.336,81.242,0.34476955]
[1646687445115,6.15,81.335,81.242,0.34476955]
[1646687445313,0.25,81.334,81.242,0.34476955]
[1646687445515,6.15,81.333,81.242,0.34476955]
[1646687445715,28.70032811,81.332,81.242,0.34476955]
[1646687445914,18.4625,81.33,81.242,0.34476955]
[1646687446213,9.23713526,81.329,81.241,28.795]
[1646687446414,9.23713526,81.329,81.241,6.0]
[1646687446614,2.83613526,81.328,81.241,6.0]
[1646687446814,6.56906382,81.327,81.241,6.0]
[1646687447014,6.401,81.327,81.233,32.14169959]
[1646687447217,2.83613526,81.326,81.234,6.0]
[1646687447414,13.08786862,81.325,81.234,6.0]
[1646687447615,13.08786862,81.325,81.235,0.59476955]
[1646687447815,2.83613526,81.324,81.235,0.34476955]
[1646687448115,3.27891556,81.317,81.216,0.34476955]
[1646687448319,3.27891556,81.31,81.19,14.43]
[1646687448515,5.68840584,81.298,81.17,14.43]
[1646687448718,122.9,81.296,81.17,14.43]
[1646687448916,0.63415992,81.294,81.17,14.43]
[1646687449118,14.43,81.29,81.17,14.43]
[1646687449316,0.63415992,81.288,81.17,32.9046]
[1646687449616,6.155,81.287,81.171,23.99816955]
[1646687449819,0.25,81.286,81.172,6.25]
[1646687450016,38.02947477,81.285,81.172,6.59476955]
[1646687450217,0.25,81.284,81.173,23.73876955]
[1646687450420,38.02947477,81.285,81.175,122.9]
[1646687450619,38.02947477,81.285,81.201,17.44653005]
[1646687450819,18.70213613,81.312,81.201,17.44653005]
[1646687450820,3.27891556,81.31,81.21,14.43]
[1646687451020,3.27891556,81.332,81.212,73.9]
[1646687451220,3.27891556,81.341,81.223,122.9]
[1646687451420,6.151,81.34,81.231,122.9]
[1646687451618,6.151,81.349,81.26,18.4555]
[1646687451920,38.01437484,81.348,81.262,29.51268774]
[1646687452120,12.83400562,81.347,81.263,6.25]
[1646687452320,6.68500562,81.346,81.263,6.25]
[1646687452518,0.25,81.345,81.263,6.25]
[1646687452918,31.32936922,81.348,81.263,6.25]
[1646687453119,6.149,81.347,81.264,122.9]
[1646687453318,31.32936922,81.348,81.266,122.9]
[1646687453518,31.32936922,81.348,81.27,14.43]
[1646687453719,31.32936922,81.348,81.271,6.25]
[1646687453919,6.149,81.347,81.271,6.25]
[1646687454327,6.93483371,81.346,81.271,0.25]
[1646687454518,12.83383371,81.345,81.271,0.25]
[1646687454718,6.93483371,81.344,81.252,0.25]
[1646687454923,12.83483371,81.343,81.252,0.25]
[1646687455219,0.25,81.342,81.252,36.82070969]
[1646687455422,6.15,81.341,81.253,6.0]
[1646687455620,0.25,81.34,81.252,0.34476955]
[1646687455820,6.15,81.339,81.243,23.99086955]
[1646687456020,18.4714,81.32,81.23,14.43]
[1646687456219,6.401,81.319,81.23,14.43]
[1646687456620,33.35114531,81.318,81.231,37.44508513]
[1646687456821,6.401,81.317,81.231,37.44508513]
[1646687457022,18.465,81.31,81.231,37.44508513]
[1646687457224,0.25,81.309,81.232,6.0]
[1646687457424,0.25,81.309,81.231,6.34476955]
[1646687457622,0.25,81.309,81.231,6.0]
[1646687457821,0.25,81.309,81.212,47.5653]
[1646687457822,2.83613526,81.308,81.212,47.5653]
[1646687458022,18.467,81.3,81.212,47.5653]
[1646687458222,38.427653,81.299,81.212,47.5653]
[1646687458423,122.9,81.298,81.212,47.5653]
[1646687458721,122.9,81.296,81.212,47.5653]
[1646687458923,0.30860325,81.293,81.19,14.77476955]
[1646687459123,18.77850325,81.29,81.191,6.0]
[1646687459323,106.404,81.289,81.191,6.34476955]
[1646687459525,0.30860325,81.288,81.192,0.34476955]
[1646687459723,30.51419523,81.286,81.192,0.34476955]
[1646687459927,6.404,81.285,81.192,0.34476955]
[1646687461125,18.4716,81.28,81.192,0.34476955]
[1646687461323,6.404,81.279,81.192,0.34476955]
[1646687461524,6.404,81.279,81.192,0.59476955]
[1646687461927,6.154,81.279,81.193,0.34476955]
[1646687462126,0.25,81.278,81.193,0.34476955]
[1646687462326,0.25,81.278,81.201,122.9]
[1646687462528,0.25,81.278,81.193,15.29023502]
[1646687462529,0.25,81.278,81.211,19.37235388]
[1646687462725,30.51419523,81.286,81.22,14.43]
[1646687462927,30.51419523,81.286,81.221,6.25]
[1646687464128,0.25,81.285,81.221,6.25]
[1646687464331,0.25,81.285,81.221,6.59476955]
[1646687465634,6.152,81.284,81.221,6.59476955]
[1646687465830,0.25,81.283,81.221,6.59476955]
[1646687466830,30.51419523,81.286,81.221,6.59476955]
[1646687466831,0.25,81.284,81.221,6.59476955]
[1646687467030,0.25,81.285,81.221,6.59476955]
[1646687467433,6.153,81.284,81.23,18.4648]
[1646687467634,6.153,81.284,81.233,122.9]
[1646687467635,0.25,81.283,81.233,122.9]
[1646687467831,0.25,81.283,81.234,6.25]
[1646687468033,0.25,81.283,81.234,0.25]
[1646687468233,0.25,81.283,81.218,6.0]
[1646687468433,0.25,81.283,81.21,14.43]
[1646687468434,6.152,81.282,81.21,14.43]
[1646687468633,0.25,81.281,81.211,6.0]
[1646687468833,0.25,81.281,81.212,33.02707857]
[1646687469032,6.154,81.28,81.213,6.0]
[1646687469233,0.25,81.279,81.213,6.0]
[1646687469432,0.25,81.279,81.213,6.34476955]
[1646687469634,0.25,81.279,81.214,0.25]
[1646687469833,0.25,81.279,81.214,0.59476955]
[1646687470034,0.25,81.279,81.215,0.34476955]
[1646687470354,0.25,81.285,81.22,18.4676]
[1646687470553,0.25,81.285,81.221,0.25]
[1646687471155,0.25,81.285,81.23,18.4659]
[1646687471354,6.152,81.307,81.231,23.38068862]
[1646687471654,0.25,81.306,81.232,6.0]
[1646687471855,6.152,81.305,81.233,0.25]
[1646687472056,3.27891556,81.321,81.233,123.49476955]
[1646687472256,6.68552991,81.332,81.241,122.9]
[1646687472454,28.01528406,81.32,81.25,14.43]
[1646687472656,6.151,81.319,81.26,14.43]
[1646687472857,6.151,81.319,81.261,6.25]
[1646687473254,0.25,81.318,81.27,18.4559]
[1646687473455,6.151,81.319,81.271,0.25]
[1646687473655,6.151,81.319,81.261,6.25]
[1646687473855,6.151,81.319,81.262,6.0]
[1646687474054,6.151,81.319,81.263,0.25]
[1646687474256,18.4633,81.31,81.261,0.25]
[1646687474455,6.151,81.309,81.261,0.25]
[1646687475255,6.151,81.309,81.245,0.25]
[1646687475656,0.25,81.308,81.245,6.25]
[1646687475957,28.33929262,81.306,81.245,6.25]
[1646687476155,6.401,81.305,81.245,6.25]
[1646687476959,6.401,81.305,81.25,18.4616]
[1646687477161,0.25,81.305,81.251,0.25]
[1646687477359,0.25,81.305,81.251,6.25]
[1646687477661,28.33929262,81.306,81.251,6.25]
[1646687477861,3.27891556,81.335,81.252,0.34476955]
[1646687478066,0.25,81.328,81.252,0.34476955]
[1646687478463,6.15,81.327,81.252,0.34476955]
[1646687478661,0.25,81.326,81.252,0.34476955]
[1646687478863,6.15,81.325,81.252,0.34476955]
[1646687479062,0.25,81.324,81.26,18.4593]
[1646687479263,6.15,81.323,81.261,6.25]
[1646687479461,0.25,81.322,81.261,6.25]
[1646687479862,28.07260919,81.326,81.261,6.25]
[1646687480264,6.15,81.325,81.261,6.25]
[1646687480464,6.15,81.325,81.261,0.25]
[1646687481066,18.4607,81.32,81.261,0.25]
[1646687481272,6.4,81.319,81.261,0.25]
[1646687481471,6.4,81.319,81.253,6.25]
[1646687482869,6.4,81.319,81.253,0.25]
[1646687483069,6.4,81.319,81.26,18.4598]
[1646687483271,6.4,81.319,81.261,0.25]
[1646687483671,6.4,81.319,81.26,18.4598]
[1646687484572,0.25,81.319,81.26,18.4598]
[1646687484771,0.25,81.325,81.26,18.4598]
[1646687484970,0.25,81.325,81.261,0.25]
[1646687485575,18.4608,81.32,81.261,0.25]
[1646687485875,6.4,81.319,81.261,0.25]
[1646687487172,0.25,81.319,81.261,0.25]
[1646687487672,0.25,81.319,81.261,6.25]
[1646687488282,28.07260919,81.326,81.27,18.4574]
[1646687488478,28.07260919,81.326,81.271,34.5741522]
[1646687489373,28.07260919,81.326,81.271,0.25]
[1646687489873,28.07260919,81.326,81.271,123.15]
[1646687490073,28.07260919,81.326,81.28,18.455]
[1646687490273,28.07260919,81.326,81.282,153.83001805]
[1646687490473,115.47891556,81.35,81.284,122.9]
[1646687490673,12.83197295,81.349,81.286,122.9]
[1646687490873,12.83197295,81.349,81.288,122.9]
[1646687491076,6.68397295,81.348,81.29,18.4528]
[1646687491374,37.16251381,81.346,81.291,6.25]
[1646687491673,6.68397295,81.345,81.291,6.25]
[1646687491875,37.16251381,81.346,81.291,6.25]
[1646687492074,37.16251381,81.346,81.291,0.25]
[1646687492674,37.16251381,81.346,81.284,0.25]
[1646687493076,37.16251381,81.346,81.3,18.4511]
[1646687493376,37.16251381,81.346,81.301,0.25]
[1646687493775,37.16251381,81.346,81.301,6.25]
[1646687494176,6.148,81.345,81.301,6.25]
[1646687494577,37.16251381,81.346,81.301,6.25]
[1646687495076,37.16251381,81.346,81.301,0.25]
[1646687496277,37.16251381,81.346,81.291,6.25]
[1646687496478,6.148,81.345,81.291,0.25]
[1646687496677,6.148,81.345,81.286,0.25]
[1646687496877,37.16251381,81.346,81.286,0.25]
[1646687497278,37.16251381,81.346,81.29,18.4535]
[1646687497583,37.16251381,81.346,81.291,21.30342264]
[1646687498686,37.16251381,81.346,81.292,0.25]
[1646687499686,37.16251381,81.346,81.3,18.4513]
[1646687499886,37.16251381,81.346,81.301,0.25]
[1646687504213,37.16251381,81.346,81.301,6.25]
[1646687504613,3.27891556,81.362,81.301,6.25]
[1646687504811,0.25,81.361,81.301,6.25]
[1646687505011,6.68265749,81.36,81.301,6.25]
[1646687505212,0.25,81.359,81.301,6.25]
[1646687505412,6.68265749,81.358,81.301,6.25]
[1646687505612,37.61843444,81.357,81.301,6.25]
[1646687508915,6.68276342,81.356,81.301,6.25]
[1646687509113,0.25,81.355,81.301,6.25]
[1646687509316,37.61843444,81.357,81.31,18.449]
[1646687509512,37.61843444,81.357,81.311,6.25]
[1646687510116,37.61843444,81.357,81.311,0.25]
[1646687510315,37.61843444,81.357,81.311,6.25]
[1646687511518,37.61843444,81.357,81.311,0.25]
[1646687511716,18.4536,81.35,81.294,6.25]
[1646687512019,0.25,81.349,81.294,6.25]
[1646687513519,6.148,81.348,81.294,6.25]
[1646687513717,0.25,81.349,81.294,6.25]
[1646687514218,0.25,81.349,81.294,0.25]
[1646687514719,18.4564,81.34,81.27,14.77476955]
[1646687514918,0.26624384,81.338,81.27,0.34476955]
[1646687515118,122.9,81.336,81.25,14.43]
[1646687515318,3.27891556,81.332,81.254,6.0]
[1646687515519,3.27891556,81.325,81.25,14.43]
[1646687515717,0.32903323,81.323,81.25,14.43]
[1646687515917,6.151,81.322,81.25,14.43]
[1646687516118,18.4663,81.31,81.249,18.56]
[1646687516318,0.32903323,81.308,81.249,18.56]
[1646687516518,6.151,81.307,81.249,18.56]
[1646687516720,0.25,81.306,81.249,18.56]
[1646687517322,0.25,81.306,81.25,18.7128]
[1646687517721,0.25,81.319,81.25,18.7128]
[1646687518624,0.25,81.319,81.251,122.9]
[1646687518823,27.44335213,81.324,81.253,122.9]
[1646687519023,27.44335213,81.324,81.27,18.4569]
[1646687519024,6.15,81.323,81.27,18.4569]
[1646687519224,6.15,81.323,81.271,28.16457462]
[1646687519426,6.15,81.323,81.271,0.25]
[1646687519626,27.44335213,81.324,81.271,0.25]
[1646687519824,6.15,81.323,81.271,0.25]
[1646687520624,0.25,81.322,81.271,0.25]
[1646687520827,6.15,81.321,81.271,0.25]
[1646687521024,6.15,81.323,81.271,0.25]
[1646687521427,18.461,81.32,81.271,0.25]
[1646687521626,6.15,81.319,81.271,0.25]
[1646687521826,6.15,81.319,81.27,18.0504]
[1646687522230,0.25,81.318,81.27,18.0504]
[1646687522427,6.15,81.317,81.27,18.0504]
[1646687522728,0.25,81.316,81.27,18.0504]
[1646687523330,0.25,81.316,81.271,0.25]
[1646687523728,0.25,81.322,81.271,0.25]
[1646687523929,6.15,81.321,81.271,0.25]
[1646687524129,0.25,81.32,81.271,0.25]
[1646687524332,6.15,81.319,81.271,23.7045481]
[1646687524629,0.25,81.318,81.271,0.25]
[1646687525230,0.25,81.318,81.271,6.25]
[1646687525635,0.25,81.322,81.271,6.25]
[1646687525833,18.4606,81.32,81.271,6.25]
[1646687526035,6.4,81.319,81.271,6.25]
[1646687528435,6.4,81.319,81.272,17.27634829]
[1646687528636,1.64571512,81.315,81.273,6.25]
[1646687528835,1.64571512,81.319,81.273,6.25]
[1646687529036,1.64571512,81.32,81.273,6.25]
[1646687529940,1.64571512,81.321,81.274,6.0]
[1646687530139,0.25,81.32,81.28,18.4553]
[1646687530357,0.25,81.32,81.281,0.25]
[1646687530739,1.64571512,81.32,81.281,0.25]
[1646687530939,1.89571512,81.319,81.281,0.25]
[1646687531139,1.64571512,81.318,81.281,0.25]
[1646687531341,1.64571512,81.318,81.263,0.25]
[1646687531540,1.64571512,81.319,81.263,0.25]
[1646687531740,1.89571512,81.318,81.263,0.25]
[1646687532041,0.25,81.318,81.263,0.25]
[1646687533043,0.25,81.318,81.27,18.4579]
[1646687533244,1.64571512,81.318,81.271,6.25]
[1646687533644,1.89571512,81.319,81.271,6.25]
[1646687534950,1.64571512,81.318,81.271,6.25]
[1646687535547,1.64571512,81.317,81.271,6.25]
[1646687535748,1.64571512,81.317,81.271,24.4985]
[1646687535947,1.64571512,81.318,81.271,24.4985]
[1646687536348,1.89571512,81.319,81.271,24.4985]
[1646687536748,1.64571512,81.318,81.271,24.4985]
[1646687537350,1.64571512,81.317,81.271,24.4985]
[1646687537651,1.64571512,81.318,81.271,24.4985]
[1646687538067,1.64571512,81.318,81.28,18.4554]
[1646687538271,1.64571512,81.33,81.281,6.25]
[1646687538469,1.64571512,81.333,81.281,13.7]
[1646687538669,1.64571512,81.338,81.283,122.9]
[1646687538868,1.64571512,81.338,81.285,122.9]
[1646687539067,1.64571512,81.339,81.286,6.25]
[1646687539268,30.33925291,81.338,81.29,32.8804]
[1646687539466,30.33925291,81.338,81.291,6.25]
[1646687540868,31.98496803,81.338,81.291,0.25]
[1646687541069,1.64571512,81.332,81.291,0.25]
[1646687541470,1.64571512,81.328,81.283,0.25]
[1646687541667,1.64571512,81.327,81.283,0.25]
[1646687542268,1.64571512,81.329,81.283,0.25]
[1646687542870,1.64571512,81.329,81.283,6.25]
[1646687543069,1.64571512,81.335,81.284,27.63261354]
[1646687543269,1.64571512,81.336,81.285,6.25]
[1646687543471,30.33925291,81.338,81.285,6.25]
[1646687543670,1.64571512,81.335,81.285,6.25]
[1646687543873,1.64571512,81.335,81.29,18.4526]
[1646687544072,1.64571512,81.327,81.272,24.1431]
[1646687544273,30.33925291,81.338,81.272,24.1431]
[1646687544274,1.64571512,81.324,81.273,28.7095]
[1646687544472,6.15,81.323,81.273,28.7095]
[1646687544671,1.64571512,81.321,81.273,28.7095]
[1646687544872,38.09231763,81.32,81.273,28.7095]
[1646687545273,38.09231763,81.32,81.274,0.25]
[1646687545674,1.64571512,81.318,81.274,0.25]
[1646687545874,7.79571512,81.317,81.274,0.25]
[1646687547179,6.15,81.317,81.274,0.25]
[1646687547881,1.64571512,81.318,81.274,0.25]
[1646687548083,1.64571512,81.325,81.275,0.34476955]
[1646687548281,1.64571512,81.333,81.28,18.4554]
[1646687548481,1.64571512,81.336,81.282,122.9]
[1646687548780,1.64571512,81.344,81.283,29.662]
[1646687548980,1.64571512,81.344,81.283,30.00676955]
[1646687549182,29.12003182,81.343,81.29,18.4471]
[1646687549383,1.64571512,81.342,81.291,0.25]
[1646687549586,1.64571512,81.339,81.284,0.34476955]
[1646687549983,1.64571512,81.338,81.284,0.34476955]
[1646687550384,1.64571512,81.339,81.284,0.34476955]
[1646687550586,1.64571512,81.336,81.283,29.662]
[1646687550784,1.64571512,81.334,81.283,29.662]
[1646687550986,1.64571512,81.332,81.283,29.662]
[1646687551185,6.149,81.331,81.283,29.662]
[1646687551387,6.149,81.331,81.283,23.662]
[1646687551586,1.64571512,81.328,81.283,23.662]
[1646687551785,7.79471512,81.327,81.283,23.662]
[1646687552187,28.53243075,81.326,81.283,23.662]
[1646687552385,6.149,81.325,81.283,23.662]
[1646687554286,6.149,81.325,81.283,0.25]
[1646687554488,7.79471512,81.325,81.275,6.25]
[1646687554886,1.64571512,81.325,81.275,6.25]
[1646687555090,0.64571512,81.325,81.275,6.25]
[1646687555288,28.53243075,81.326,81.275,6.25]
[1646687555688,6.15,81.325,81.275,6.25]
[1646687556293,3.27891556,81.348,81.275,6.25]
[1646687556294,3.27891556,81.349,81.281,122.9]
[1646687556490,3.27891556,81.366,81.283,122.9]
[1646687556689,3.27891556,81.373,81.285,122.9]
[1646687556890,6.147,81.372,81.287,122.9]
[1646687557090,6.147,81.373,81.301,122.9]
[1646687557291,35.73100912,81.372,81.303,122.9]
[1646687557590,35.73100912,81.372,81.32,18.4429]
[1646687557791,35.73100912,81.372,81.321,34.16144522]
[1646687557993,6.146,81.371,81.321,6.59476955]
[1646687558291,6.146,81.371,81.322,0.34476955]
[1646687558691,35.73100912,81.372,81.322,0.34476955]
[1646687561997,6.396,81.371,81.304,48.4397]
[1646687562197,6.396,81.371,81.305,6.0]
[1646687562600,18.4502,81.37,81.305,6.0]
[1646687562896,35.73100912,81.372,81.304,48.4397]
[1646687562897,6.397,81.369,81.304,48.4397]
[1646687563698,18.4523,81.36,81.305,0.25]
[1646687563900,6.397,81.359,81.305,0.25]
[1646687564123,27.36477441,81.358,81.305,0.25]
[1646687564297,6.397,81.357,81.305,6.25]
[1646687564698,0.25,81.357,81.305,6.25]
[1646687564900,0.25,81.357,81.31,18.4482]
[1646687565101,27.36477441,81.358,81.311,6.25]
[1646687567406,27.36477441,81.358,81.311,0.25]
[1646687567705,27.36477441,81.358,81.306,0.25]
[1646687567905,6.147,81.357,81.306,0.25]
[1646687569506,27.36477441,81.358,81.306,0.25]
[1646687570105,27.36477441,81.358,81.31,18.4477]
[1646687570306,27.36477441,81.358,81.311,6.0]
[1646687571305,27.36477441,81.358,81.312,0.34476955]
[1646687571506,27.36477441,81.358,81.311,6.0]
[1646687571730,27.36477441,81.358,81.312,0.25]
[1646687571929,27.36477441,81.358,81.312,0.59476955]
[1646687572329,27.36477441,81.358,81.313,0.34476955]
[1646687572931,18.4476,81.38,81.321,26.53376879]
[1646687573132,18.4476,81.38,81.322,0.25]
[1646687573532,6.146,81.379,81.322,0.25]
[1646687573832,0.25,81.378,81.322,0.25]
[1646687574034,6.146,81.377,81.323,0.34476955]
[1646687574235,0.25,81.376,81.323,0.34476955]
[1646687574431,6.146,81.385,81.323,0.34476955]